Cogmind - Beta 17 @@@ ROGUE MODE // 2026.07.18 @ 02:19:49 Player: mischief_2000 Result: Destroyed by G-50 Soldier with Heavy Laser Performance ------------- Evolutions (4) 2000 Regions Visited (4) 800 Robots Destroyed (60) 300 Value Destroyed (2365) 2365 Prototype IDs (15) 300 Alien Tech Used (0) 0 Bonus (900) 900 TOTAL SCORE: 6665 Bonus ------- High Alert Combat Kills 51 Follower Combat Kills 49 Registered with UFD 300 Met Optimus in HQ 500 Cogmind --------- Core Integrity 0/850 Matter 243/300 Energy 100/100 System Corruption 2% Temperature Cool (9) Movement Walking (140) Location -6/Factory Parts ------- > --- POWER (2) -------- (None) > --- PROPULSION (4) --- Light Armored Exoskeleton Light Armored Exoskeleton > --- UTILITY (6) ------ Large Storage Unit Improved Transmission Jammer (fused) Hacking Suite Self-contained Transmogrifier > --- WEAPON (3) ------- (None) > --- INVENTORY (15) --- Light Armored Exoskeleton Light Armored Exoskeleton Compact Wheel High-capacity Storage Unit Medium Matter Pod (100) Large Matter Pod (90) Experimental Signal Interpreter Recoil Stabilizer Drone Bay (2/2) Power Bank CPS Tube (2) CPS Tube (2) DRS Beacon (Ready) Peak State ------------ > --- POWER ------------ Light Angular Momentum Engine Cooled Fission Core > --- PROPULSION ------- Armored Treads Medium Treads Cargo Legs > --- UTILITY ---------- Advanced Heat Sink Large Storage Unit Hacking Suite Improved Component Analysis Suite Self-contained Transmogrifier > --- WEAPON ----------- Heavy Laser Improved Heavy Laser Improved Heavy Laser > --- INVENTORY -------- Compact Wheel High-capacity Storage Unit Medium Matter Pod Large Matter Pod Experimental Signal Interpreter Recoil Stabilizer Drone Bay Power Bank Plasma Rifle CPS Tube CPS Tube DRS Beacon [Rating: 79] Favorites ----------- Power Light Ion Engine Engine Light Ion Engine Power Core Cooled Fission Core Reactor Light Antimatter Reactor Propulsion Light Treads Treads Light Treads Leg Cargo Legs Flight Unit Improved Cesium-ion Thruster Utility Large Storage Unit Device Self-contained Transmogrifier Storage Large Storage Unit Processor Advanced Melee Analysis Suite Hackware Hacking Suite Protection Light Armor Plating Weapon Light Cannon Energy Gun Improved Heavy Laser Energy Cannon Subdweller Beam Cannon Ballistic Gun Assault Rifle Ballistic Cannon Light Cannon Launcher Rocket Launcher Special Weapon Mining Laser Impact Weapon Flail Slashing Weapon Phasing Sabre Piercing Weapon Spear Build | -11 -10 -10 -9 -6 ------- Run | Yrd Mat Sub Scr Fac Slots Evolved 8 | . . . . 8 Power 1 | . . . . 1 Propulsion 2 | . . . . 2 Utility 4 | . . . . 4 Weapon 1 | . . . . 1 Parts Attached 49 | 6 5 16 3 19 Power 5 | . 1 3 . 1 Engine 5 | . 1 3 . 1 Core . | . . . . . Reactor . | . . . . . Propulsion 11 | 2 . 3 . 6 Treads 6 | 2 . 3 . 1 Leg 4 | . . . . 4 Wheel . | . . . . . Hover . | . . . . . Flight 1 | . . . . 1 Utility 12 | 2 1 2 1 6 Device 5 | 1 . 1 . 3 Storage 3 | 1 1 . 1 . Processor 1 | . . . . 1 Hackware 2 | . . . . 2 Protection 1 | . . 1 . . Artifact . | . . . . . Weapon 21 | 2 3 8 2 6 Energy Gun 4 | . . . . 4 Energy Cannon 4 | . . 4 . . Ballistic Gun 4 | 2 . . 2 . Ballistic Cannon 7 | . 2 4 . 1 Launcher 1 | . . . . 1 Special Weapon 1 | . 1 . . . Impact Weapon . | . . . . . Slashing Weapon . | . . . . . Piercing Weapon . | . . . . . Special Melee Weapon . | . . . . . Unidentified Prototypes 2 | . . 1 . 1 Parts Lost 17 | . . 2 . 15 Power 2 | . . . . 2 Propulsion 3 | . . . . 3 Utility 4 | . . 1 . 3 Weapon 8 | . . 1 . 7 Highest Loss Streak 12 | . . 1 . 12 To Critical Strikes . | . . . . . Average Backups 13 | 4 11 14 14 11 Power . | 1 1 . . . Propulsion 3 | 2 4 3 2 1 Utility 6 | . 1 6 7 7 Weapon 2 | . 3 3 2 . Tool/Special . | . . . . . Unused Backups 39 | . 4 4 12 19 Power 2 | . . . 1 1 Propulsion 12 | . 2 3 2 5 Utility 17 | . 1 . 7 9 Weapon 6 | . 1 1 2 2 Tool/Special 2 | . . . . 2 Average Slot Usage (%) 96 | . 97 98 99 78 Engine 11 | . 12 14 11 4 Core 1 | . . . 2 3 Treads 26 | . 28 28 28 16 Device 12 | . 14 8 14 18 Storage 12 | . 14 14 14 5 Hackware 1 | . . . . 7 Protection 1 | . . 3 . . Energy Gun 4 | . . . 8 12 Energy Cannon 7 | . . 15 2 . Ballistic Gun 2 | . 8 . 5 . Ballistic Cannon 6 | . 18 10 . . Impact Weapon 2 | . . . 7 . Peak Build Rating 79 | 6 8 22 40 79 Average Rating 24 | 4 7 11 33 61 On Entrance 14 | . 6 8 22 38 Avg Prop Armor Cover (%) 13 | . . . . 13 Naked Turns . | . . . . . Heaviest Build 71 | 10 30 37 65 71 Greatest Support 71 | 40 40 42 58 71 Greatest Overweight (x) 1 | . . . 1 1 Average Overweight (x) . | . . . . . Largest Inventory Capacity 20 | 8 15 15 20 15 Average Capacity 15 | 7 12 15 17 15 Most Carried 20 | 8 15 15 20 15 Average Carried 14 | 4 11 14 16 13 Final Capacity 15 | 8 15 15 15 15 Final Carried 15 | 8 15 15 15 15 Transmogrified Parts 47 | . . 2 31 14 Integrity Recovered 402 | . . 45 161 196 Class Distribution -------------------- 89% | Mutant 3% | Hacker-Mutant 3% | Tank Dominant Class ---------------- Mutant | -10/Materials Mutant | -10/Subcaves Mutant | -9/Scraptown Hacker-Mutant | -6/Factory Resources | -11 -10 -10 -9 -6 ----------- Run | Yrd Mat Sub Scr Fac Matter Collected 2009 | 173 233 915 202 486 Remotely . | . . . . . Salvage Created 2092 | 91 174 702 . 1125 Parts 102 | 6 13 40 . 43 Haulers Intercepted . | . . . . . Recyclers Shooed 1 | . . . . 1 Parts Field Recycled . | . . . . . Retrieved Matter . | . . . . . Parts Self-Destructed 9 | . . 9 . . Prevented . | . . . . . Parts Restored . | . . . . . Kills | -11 -10 -10 -9 -6 ------- Run | Yrd Mat Sub Scr Fac Combat Hostiles Destroyed 51 | . 5 19 . 27 Melee 1 | . . . . 1 Guns 13 | . . . . 13 Cannons 25 | . 5 18 . 2 AOE 10 | . . . . 10 Classes Destroyed 14 | 2 4 2 . 6 Worker 2 | . . . . 2 Builder 2 | . . . . 2 Tunneler 1 | 1 . . . . Recycler 1 | 1 . . . . Operator 1 | . 1 . . . Watcher 2 | . 2 . . . Swarmer 8 | . 1 . . 7 Grunt 20 | . 4 3 . 13 Duelist 1 | . . . . 1 Sentry 2 | . . 1 . 1 Specialist 2 | . . . . 2 Hunter 1 | . . . . 1 Programmer 2 | . . . . 2 Subdweller 15 | . . 15 . . Best Kill Streak 9 | 2 3 3 . 9 Combat Bots Only 8 | . 2 3 . 8 Max Kills in Single Turn 2 | 1 2 1 . 2 Gunslinging . | . . . . . Exploded 2 | . . . . 2 Melee 1 | . . . . 1 Uniques/NPCs Destroyed . | . . . . . Combat | -11 -10 -10 -9 -6 -------- Run | Yrd Mat Sub Scr Fac Hostile Shots Fired 432 | . 11 97 . 324 Missed 133 | . 4 37 . 92 Hits 299 | . 7 60 . 232 Projectile 299 | . 7 60 . 232 Critical Strikes 12 | . . 2 . 10 Damage Taken 5387 | . 86 1255 . 4046 Core 1078 | . . 210 . 868 Absorbed by Shields 325 | . . . . 325 Core Remaining (%) 58 | 100 . . 16 . Volleys Fired 217 | 7 22 120 . 68 Largest 3 | 2 2 2 . 3 Hottest 209 | 40 100 140 . 209 Shots Fired 394 | 14 42 203 . 135 Gun 123 | 14 7 . . 102 Cannon 230 | . 34 187 . 9 Launcher 24 | . . . . 24 Special 17 | . 1 16 . . Kinetic 160 | 14 41 96 . 9 Thermal 210 | . 1 107 . 102 Explosive 24 | . . . . 24 Electromagnetic . | . . . . . Robot Hit Streak 14 | 5 6 14 . 11 Robot Miss Streak 4 | 1 4 3 . 4 Penetration Max . | . . . . . Secondary Targets 1 | . . . . 1 Max Gunslinging Chain 1 | . . . . 1 Shots Hit Robots 220 | 11 21 107 . 81 Core Hits 109 | 3 9 30 . 67 Critical Kills 1 | . . 1 . . Critical Parts Destroyed . | . . . . . Critical Strikes 6 | . 1 1 . 4 Burn 4 | . . . . 4 Meltdown 1 | . . 1 . . Blast 1 | . 1 . . . Melee Attacks 5 | . . . . 5 Impact . | . . . . . Slashing 5 | . . . . 5 Piercing . | . . . . . Sneak Attacks . | . . . . . Combat Hostiles . | . . . . . Follow-up Attacks . | . . . . . Damage Inflicted 6397 | 134 380 2085 . 3798 Guns 1747 | 134 15 . . 1598 Cannons 2625 | . 365 2085 . 175 Explosions 1924 | . . . . 1924 Melee 75 | . . . . 75 Ramming 26 | . . . . 26 Kinetic 1687 | 134 380 998 . 175 Thermal 3151 | . . 1087 . 2064 Explosive 1416 | . . . . 1416 Electromagnetic 42 | . . . . 42 Impact . | . . . . . Slashing 75 | . . . . 75 Piercing . | . . . . . Highest Corruption 2 | . . . . 2 Average Corruption 1 | . . . . 1 Corruption Purged . | . . . . . Corruption Blocked . | . . . . . Effects 1 | . . . . 1 Matter Fused 1 | . . . . 1 Overload Shots . | . . . . . Overflow Damage 88 | . . 1 . 87 Projectiles 7 | . . 1 . 6 Explosions 81 | . . . . 81 Melee . | . . . . . Knockbacks 12 | . 3 5 . 4 Impact . | . . . . . Kinetic 12 | . 3 5 . 4 Secondary . | . . . . . Self-Inflicted Damage 181 | . . . . 181 Shots 5 | . . . . 5 Rammed . | . . . . . Targets Rammed 10 | . . . . 10 Kicked 10 | . . . . 10 Crushed . | . . . . . Highest Temperature 547 | . 36 135 . 547 Average Temperature 107 | . 17 24 . 156 Received Heat Transfer 1894 | . 45 357 . 1492 Effects 7 | . . . . 7 Shutdowns 3 | . . . . 3 Interference 1 | . . . . 1 Matter Decay 1 | . . . . 1 Damage (minor) 1 | . . . . 1 Damage (core) 1 | . . . . 1 Siege Activations . | . . . . . Martial Activations . | . . . . . Shielding Activations . | . . . . . Robots Disrupted . | . . . . . Combat Hostiles . | . . . . . Robots Corrupted . | . . . . . Combat Hostiles . | . . . . . Parts Fried . | . . . . . Impact Corruptions . | . . . . . Robots Melted 2 | . . 1 . 1 Combat Hostiles 2 | . . 1 . 1 Parts Melted 10 | . . 3 . 7 Heat Transferred 4970 | . . 1776 . 3194 Parts Sabotaged . | . . . . . Parts Stolen . | . . . . . Parts Stripped . | . . . . . Power Chain Reactions . | . . . . . Alert | -11 -10 -10 -9 -6 ------- Run | Yrd Mat Sub Scr Fac Maximum Alert Level 2 | . . . . 2 Low Security (%) 58 | 100 100 . . 27 Level 1 36 | . . . . 63 Level 2 5 | . . . . 8 Level 3 . | . . . . . Level 4 . | . . . . . Level 5 . | . . . . . High Security . | . . . . . Max Security . | . . . . . Peak Influence 481 | 5 60 . . 481 Initial . | . . . . . Average 145 | . 10 . . 247 Influence Increases 1239 | 10 156 100 . 973 Destroy 0b10 Robot/C 740 | . 100 80 . 560 Destroy 0b10 Robot/NC 45 | 10 15 . . 20 Destroy Leader 164 | . 24 20 . 120 Allied During Kill 12 | . . . . 12 Successful Hack 10 | . . . . 10 Disable Machine 135 | . 15 . . 120 Destroy Structure 88 | . 2 . . 86 Lose Combat Pursuer 45 | . . . . 45 Influence Decreases 818 | 10 112 144 . 552 Entered New Map 22 | . . 22 . . Time Decay 626 | 10 112 122 . 382 Lost Part 150 | . . . . 150 Lost Ally 20 | . . . . 20 Squads Dispatched 14 | . 1 . . 13 Investigation 4 | . . . . 4 Extermination 2 | . . . . 2 Reinforcement 4 | . 1 . . 3 Assault . | . . . . . Garrison 4 | . . . . 4 Intercept . | . . . . . Searches Triggered . | . . . . . Construction Impeded 1 | . . . . 1 Haulers Reinforced . | . . . . . Active Scanning Responses . | . . . . . Cargo Convoy Interrupts . | . . . . . Stealth | -11 -10 -10 -9 -6 --------- Run | Yrd Mat Sub Scr Fac Distress Signals 2 | . 1 . . 1 Communications Jammed . | . . . . . Distress Signals . | . . . . . Times Spotted 70 | . 11 20 . 39 Peak Tracking Total 9 | . 3 3 . 9 Tactical Retreats 3 | . . . . 3 Traps | -11 -10 -10 -9 -6 ------- Run | Yrd Mat Sub Scr Fac Traps Triggered . | . . . . . Indirectly . | . . . . . Trap Hack Attempts . | . . . . . Triggered . | . . . . . Disarmed . | . . . . . Reprogrammed . | . . . . . Reused . | . . . . . Traps Extracted . | . . . . . Installed . | . . . . . Triggered . | . . . . . Machines | -11 -10 -10 -9 -6 ---------- Run | Yrd Mat Sub Scr Fac Machines Disabled 10 | . 1 1 . 8 Max in Single Turn 2 | . 1 1 . 2 Garrison Access 1 | . . . . 1 Machines Repaired . | . . . . . Machines Dismantled . | . . . . . Machines Sabotaged . | . . . . . Overloaded Fab Kills . | . . . . . Hacking | -11 -10 -10 -9 -6 --------- Run | Yrd Mat Sub Scr Fac Machines Accessed 11 | . 2 . 2 7 Terminals 3 | . 2 . . 1 Fabricators . | . . . . . Repair Stations . | . . . . . Recycling Units 3 | . . . . 3 Scanalyzers 1 | . . . . 1 Garrison Access 2 | . . . . 2 Total Hacks 27 | . 3 . 10 14 Successful 17 | . 1 . 10 6 Failed 10 | . 2 . . 8 Catastrophic 2 | . . . . 2 Database Lockouts . | . . . . . Manual 6 | . 1 . . 5 Terminals 4 | . 3 . . 1 Fabricators . | . . . . . Repair Stations . | . . . . . Recycling Units 4 | . . . . 4 Scanalyzers 5 | . . . . 5 Garrison Access 4 | . . . . 4 Terminal Hacks 10 | . . . 10 . Record 1 | . . . 1 . Robot Analysis 9 | . . . 9 . Fabricator Hacks . | . . . . . Repair Station Hacks . | . . . . . Recycling Unit Hacks . | . . . . . Scanalyzer 2 | . . . . 2 Retrieve Study 2 | . . . . 2 Garrison Access Hacks 1 | . . . . 1 Seal Access 1 | . . . . 1 Unauthorized Hacks 4 | . 1 . . 3 Terminals 1 | . 1 . . . Botnet 1 | . 1 . . . Fabricators . | . . . . . Repair Stations . | . . . . . Recycling Units 3 | . . . . 3 Fedlink 3 | . . . . 3 Scanalyzers . | . . . . . Garrison Access . | . . . . . Data Cores Recovered . | . . . . . Used . | . . . . . Hacking Detections 6 | . 1 . . 5 Full Trace Events 1 | . . . . 1 Feedback Events 1 | . . . . 1 Corruption 1 | . . . . 1 Feedback Blocked . | . . . . . Robot Schematics Acquired . | . . . . . Robots Built . | . . . . . Authchips . | . . . . . Time . | . . . . . Total Robot Build Rating . | . . . . . Part Schematics Acquired . | . . . . . Parts Built . | . . . . . Authchips . | . . . . . Time . | . . . . . Total Part Build Rating . | . . . . . Part Studies Acquired 2 | . . . . 2 Parts Repaired . | . . . . . Time . | . . . . . Parts Recycled . | . . . . . Recycled Matter . | . . . . . Retrieved Matter . | . . . . . Retrieved Components . | . . . . . Parts Scanalyzed . | . . . . . Part Schematics Acquired . | . . . . . Parts Damaged . | . . . . . Bothacking | -11 -10 -10 -9 -6 ------------ Run | Yrd Mat Sub Scr Fac Used RIF Installer . | . . . . . Robots Hacked . | . . . . . Non-combat . | . . . . . Combat . | . . . . . Robot Hacks Applied . | . . . . . Relay Couplers Released . | . . . . . Fabnet Peak Effective % . | . . . . . Robots Rewired . | . . . . . Allies Hacked . | . . . . . Hacks Repelled . | . . . . . Allies | -11 -10 -10 -9 -6 -------- Run | Yrd Mat Sub Scr Fac Total Allies 1 | . . . 1 . Largest Group 1 | . . . 1 1 Highest-Rated Group 42 | . . . 42 42 Highest-Rated Ally 42 | . . . 42 42 Initial UFD Resources 22 | . . . . 22 Total Orders . | . . . . . Ally Attacks 9 | . . . . 9 Total Damage 199 | . . . . 199 Kills 1 | . . . . 1 Allies Corrupted . | . . . . . Allies Melted . | . . . . . Intel | -11 -10 -10 -9 -6 ------- Run | Yrd Mat Sub Scr Fac Active Infowar (turns) 2581 | 13 651 1894 . 23 Seismic 2558 | 13 651 1894 . . Jamming 23 | . . . . 23 Robot Analysis Total 9 | . . . 9 . Derelict Logs Recovered 6 | . . 2 4 . Drone Launches . | . . . . . Drone Recoveries . | . . . . . Exploration | -11 -10 -10 -9 -6 ------------- Run | Yrd Mat Sub Scr Fac Turns Passed 7484 | 114 651 3437 2261 1021 Spaces Moved 3962 | 50 323 1881 1260 448 Core 3 | 3 . . . . Treads 3888 | 47 323 1881 1260 377 Legs 71 | . . . . 71 Wheels . | . . . . . Hover . | . . . . . Flight . | . . . . . Fastest Speed 50 | 50 160 152 152 125 Average Speed 165 | 153 160 159 175 170 Slowest Speed 252 | 160 160 160 245 252 Overloaded Moves . | . . . . . Propulsion Burnouts . | . . . . . Robots Hopped . | . . . . . Potential Cave-ins . | . . . . . Cave-ins Triggered . | . . . . . Exploration Rate (%) 44 | 4 37 89 80 12 Regions Visited 4 Branch Regions 2 Pre-discovered Areas 2 | . . 1 . 1 Known Exits Taken . | . . . . . Unknown Exits Taken 4 | 1 1 1 1 . Scrap Searched 11 | . . 6 5 . Spaces Dug 4 | . 1 . . 3 Terrain Destroyed 126 | . 1 . . 125 Melee 3 | . . . . 3 Projectile 1 | . 1 . . . AOE 122 | . . . . 122 Terrain Rammed . | . . . . . Walls Destroyed . | . . . . . Machines Disabled . | . . . . . Actions | -11 -10 -10 -9 -6 --------- Run | Yrd Mat Sub Scr Fac Total 4452 | 70 415 2073 1323 571 Wait 102 | . 46 25 23 8 Move 3958 | 49 322 1880 1259 448 Hop . | . . . . . Pick Up 56 | 8 12 9 19 8 Fast Attach 26 | 6 2 7 . 11 Attach 14 | . 1 4 2 7 Detach . | . . . . . Swap 17 | . 3 11 2 1 Drop 47 | . 7 17 18 5 Fire 217 | 7 22 120 . 68 Melee 5 | . . . . 5 Ram . | . . . . . Kick 10 | . . . . 10 Crush . | . . . . . Escape Stasis . | . . . . . Rewire . | . . . . . Trap . | . . . . . Miscellaneous . | . . . . . Route ------- -11/Scrapyard -10/Materials (discovered 3 exits: [*Mat] / [*Min] / [*Sub]) -10/Subcaves (discovered 3 exits: [*Mat x2] / *Scr) -9/Scraptown (discovered 2 exits: *Fac x2) -6/Factory (discovered 1 exit: [*Fac]) History --------- Turn | Location | Event 17 | -11/Scrapyard | Discovered new exit (range 13) 115 | -11/Scrapyard | Entered Materials 193 | -10/Materials | Discovered new exit (range 15) 231 | -10/Materials | Discovered new exit (range 10) 316 | -10/Materials | Build established: Mutant 524 | -10/Materials | Discovered new exit (range 13) 766 | -10/Materials | Entered Subcaves 767 | -10/Subcaves | Approached by a straggling Scientist 895 | -10/Subcaves | Discovered new exit (range 10) 1309 | -10/Subcaves | A swath of the cavern ceiling suddenly collapsed 1588 | -10/Subcaves | Learned Materials stockpile data 1679 | -10/Subcaves | Shifting Twisted Machinery released Flamer 1720 | -10/Subcaves | Shifting Twisted Machinery released Scrap Shield 1965 | -10/Subcaves | Discovered new exit (range 16) 2585 | -10/Subcaves | Shifting Twisted Machinery released Spk. Treads 2603 | -10/Subcaves | Shifting Twisted Machinery released Sub. Monowheel 2642 | -10/Subcaves | Scientist uncovered a shortcut to Scraptown 2748 | -10/Subcaves | A Subdweller sparked back to life 2748 | -10/Subcaves | A Subdweller sparked back to life 2748 | -10/Subcaves | A Subdweller sparked back to life 2776 | -10/Subcaves | Found Prototype Device 2952 | -10/Subcaves | A swath of the cavern ceiling suddenly collapsed 3128 | -10/Subcaves | Core integrity fell below 50% 3625 | -10/Subcaves | Learned Materials emergency access door positions 3724 | -10/Subcaves | Core integrity fell below 20% 3783 | -10/Subcaves | Learned location of Zion (-7) 3783 | -10/Subcaves | Met a Zionite searching for "candidates" 3873 | -10/Subcaves | Visited 4L-MR0's lab 3890 | -10/Subcaves | Found Prototype Leg 3910 | -10/Subcaves | Found Prototype Device 3910 | -10/Subcaves | Identified Sfc. Transmogrifier 4203 | -10/Subcaves | Entered Scraptown 4373 | -9/Scraptown | Visited UFD Registry 4373 | -9/Scraptown | Registered with UFD as "Gammasink" 4454 | -9/Scraptown | Scanned Subdweller tech in exchange for log data 4459 | -9/Scraptown | Learned Research emergency access door positions 4461 | -9/Scraptown | Learned Factory stockpile data 4462 | -9/Scraptown | Learned Research trap positions 4465 | -9/Scraptown | Learned location of 1 exit from Proximity Caves 4483 | -9/Scraptown | Discovered new exit (range 11) 4773 | -9/Scraptown | Visited Supply Room 4910 | -9/Scraptown | Visited Analyses Database 4945 | -9/Scraptown | Visited Infowarlord's Domain 4958 | -9/Scraptown | Found Exp. Signal Interpreter 5035 | -9/Scraptown | Delivered Scrap Shield to a Scientist 5137 | -9/Scraptown | Visited Research Penetration Think Tank 5193 | -9/Scraptown | Visited DA-N13 Charitable Foundation 5207 | -9/Scraptown | Found DCF Scrap (30 items) 5274 | -9/Scraptown | Visited Cartography Club 5332 | -9/Scraptown | Visited Botcube Research 5362 | -9/Scraptown | Visited Observation Area 5420 | -9/Scraptown | Visited Derelict Rescue Squad 5429 | -9/Scraptown | Found DRS Beacon 6251 | -9/Scraptown | Found Botcube 6259 | -9/Scraptown | Botcube activated 6279 | -9/Scraptown | Botcube completed mutation into treaded form, armed with 2 guns. 6349 | -9/Scraptown | Met Optimus 6349 | -9/Scraptown | Accepted into 0bPrime 6444 | -9/Scraptown | Discovered new exit (range 5) 6464 | -9/Scraptown | Entered Factory 6464 | -6/Factory | Accompanied by 1 ally 6464 | -6/Factory | Evolved 8 slots: Power x1, Propulsion x2, Utility x4, Weapon x1 6534 | -6/Factory | Loaded intel: 8 recycling unit locations 6558 | -6/Factory | Garrison activated, responded to threat 6636 | -6/Factory | Learned location of Protoforge (-2) 6708 | -6/Factory | Identified Cargo Legs 6750 | -6/Factory | Identified Power Bank 7314 | -6/Factory | Attached Cargo Legs, gained temporary slots: Utility x2 7386 | -6/Factory | Garrison activated, responded to threat 7394 | -6/Factory | Core integrity fell below 50% 7438 | -6/Factory | Destroyed 8 combat bots 7441 | -6/Factory | Core integrity fell below 20% 7458 | -6/Factory | Lost 12 parts (2p3n1u6w) 7484 | -6/Factory | Discovered new exit (range 16) 7485 | -6/Factory | Destroyed by G-50 Soldier with Heavy Laser Last Messages --------------- 07447_ The unstable cave ceiling collapses. 07447_ K-01 Serf collects debris. 07448_ U-05 Engineer builds a Wall. 07448_ K-01 Serf collects debris. 07449_ U-05 Engineer lays Concrete. 07449_ K-01 Serf collects debris. 07460_ Connecting with Terminal... 07467_ Kicked G-50 Soldier. 07469_ Kicked G-50 Soldier out of the way. 07470_ Kicked G-50 Soldier. 07473_ Kicked G-50 Soldier out of the way. 07474_ Critical hit (Burn: +37). 07474_ Kicked G-50 Soldier. 07474_ K-01 Serf collects debris. 07476_ Kicked G-50 Soldier out of the way. 07477_ K-01 Serf collects debris. 07478_ U-05 Engineer lays Concrete. 07478_ U-05 Engineer builds a Wall. 07478_ K-01 Serf collects debris. 07484_ EXIT=FOUND Map ----- +----------------------------------------------------+ | ????????????????????????? #?????????????????????# | | ????????????????????????? #?????????????????????# | | ???????????????????""???? #?????????????????????# | | ??????????????????? ??? ##??????????????#?????# | | ??????????????? ??""" """ ?????????????? ?????# | | ?????????????? """ """ ?????????????? ?????# | | ??????????????? """ """ ????????????? ?????# | | ???????????????? """ """ ?????????????? ?????# | | ????????????????? ??????????????? ?????# | | ??????????????# """ ""#??????????????? ?????# | | ??????????????# """ ""#??????????????# #????# | | ??????????????# """ T"#??????????????# #????# | | ??????????????# """ ""#?????###??????# #????# | | ??????????????# ""####### ######?# #????# | | ??????????????# # """ #?# #?? | | ??????????????# # " #?# #?? "" | | ??????????????######## u# % " ### #???"R | | ?????????????????????# # %% ### ### "" | | ?????????????????????# # % % + "" | | ?????????????????????# # % ## # | | ?????????????????????# gg / % # # #### | | ?????????????????????# gg# ## # | | ?????????????????????# # # ##### | | ?????????????????????## ## # ##???# | | ??????????????????????# ## ## #???# | | ??????????????????????# @## # #???# | | ??????????????????????# ########## #######???# | | ??????????????????????# #?????????## """?????# | | ??????????????????????# #??????????? """ ????# | | ??????????????????????# #??????????? """ ????# | | ??????????????????????# #??????????? ?????# | | ??????????????????????# #???????????? ????? | | ??????????????????????# #???????????? ????? | | ??????????????????????# #????????????#??????? | | ??????????????????????# ????????????????????? | | ??????????????????????# ???????????????????? | | ??????????????????????# ????????????????????? | | ??????????????????????# ???????????????????????? | | ?????????????????????? ???????????????????????? | | ?????????????????????? ???????????????????????? | | ??????????????????????? < ???????????????????????? | | ?????????????????????????????????????????????????? | | ?????????????????????????????????????????????????? | | ?????????????????????????????????????????????????? | | ?????????????????????????????????????????????????? | | ?????????????????????????????????????????????????? | | ?????????????????????????????????????????????????? | | ?????????????????????????????????????????????????? | | ?????????????????????????????????????????????????? | | ?????????????????????????????????????????????????? | +----------------------------------------------------+ Best States ------------- Heat Dissipation 56 Energy Generation 35 Energy Capacity 400 Matter Stores 300 Matter Capacity 300 Sight Range 16 Terrain Scan Density 10 Jamming Range 14 Armor Coverage 150 Evasion (%) 55 Melee Accuracy 8 Launcher Accuracy 30 Recoil Reduction 3 Offensive Hacking 10 Defensive Hacking 11 Item Schematics ----------------- None Robot Schematics ------------------ None Fabricated ------------ Nothing Repaired ---------- Nothing Studied --------- Lgt. Angular Momentum Engine | -6/Factory | Hacked Hvy. Laser | -6/Factory | Hacked Alien Tech Used ----------------- None Achievements -------------- None Challenges ------------ None Game ------ Seed SurgeVariableMinigun Manual? 0 Play Time 00:45:00 Cumulative 363.6 hours Start 2026.07.18 @ 01:34:00 End 2026.07.18 @ 02:19:49 Sessions 1 Manual Loads 0 Difficulty Rogue Special Mode None Game No. 187 Rogue 187 Adventurer 0 Explorer 0 Win Type - Total 7 Types 4/0/1/1/0/0/0/1/0/0 Lore% 70 Gallery% 72 Achievement% 63 Wizard Run 0 Options --------- Layout 1 ASCII 0 Keyboard 0 Movement Mouse Keybinds 0 Fullscreen 1 Font 18/SmallcapsGlow Map View 54x44 Zoom Use 0% Tactical HUD 1 Map Filters NONE Filters NONE Steam 0 RUN: a08ebde8-0b3f-4c98-b15b-821bbeec415b